lending/lending_fUSD_20250131
["ID","MTS","AMOUNT","RATE_DAILY","PERIOD"]
[351103412,1738337454178,-987.06,0.00016849,2]
[351103413,1738337454187,-500.0,0.00016849,2]
[351103414,1738337454197,-500.0,0.00016849,2]
[351103415,1738337454207,-507.9,0.00016849,2]
[351103416,1738337454217,-583.45,0.00016849,2]
[351103417,1738337454226,-602.74296242,0.00016849,2]
[351103418,1738337454236,-575.66,0.00016849,2]
[351103419,1738337454245,-500.0,0.00016849,2]
[351103420,1738337454255,-747.35,0.00016849,2]
[351103421,1738337454265,-511.84,0.00016849,2]
[351103422,1738337454275,-500.0,0.00016849,2]
[351103423,1738337454285,-500.0,0.00016849,2]
[351103424,1738337454294,-599.23,0.00016849,2]
[351103425,1738337454304,-500.0,0.00016849,2]
[351103426,1738337454314,-468.57060369,0.00016849,2]
[351103427,1738337454324,-500.0,0.00016849,2]
[351103428,1738337454334,-500.0,0.00016849,2]
[351103429,1738337454343,-500.0,0.00016849,2]
[351103430,1738337454353,-500.0,0.00016849,2]
[351103431,1738337454362,-500.0,0.00016849,2]
[351103432,1738337454372,-1018.64,0.00016849,2]
[351103433,1738337454381,-879.7,0.00016849,2]
[351103434,1738337454390,-584.66,0.00016849,2]
[351103435,1738337454400,-500.0,0.00016849,2]
[351103436,1738337454409,-1075.66,0.00016849,2]
[351103437,1738337454419,-500.0,0.00016849,2]
[351103438,1738337454429,-500.0,0.00016849,2]
[351103439,1738337454438,-500.0,0.00016849,2]
[351103440,1738337454448,-500.0,0.00016849,2]
[351103441,1738337454458,-500.0,0.00016849,2]
[351103442,1738337454468,-1110.29,0.00016849,2]
[351103443,1738337454477,-500.0,0.00016849,2]
[351103444,1738337454487,-786.96,0.00016849,2]
[351103445,1738337454496,-525.19,0.00016849,2]
[351103446,1738337454506,-500.0,0.00016849,2]
[351103447,1738337454515,-500.0,0.00016849,2]
[351103448,1738337454525,-849.92,0.00016849,2]
[351103449,1738337454536,-1206.52,0.00016849,2]
[351103450,1738337454546,-657.29,0.00016849,2]
[351103451,1738337454556,-500.0,0.00016849,2]
[351103452,1738337454565,-835.77,0.00016849,2]
[351103453,1738337454575,-622.41,0.00016849,2]
[351103454,1738337454584,-617.02,0.00016849,2]
[351103455,1738337454594,-500.0,0.00016849,2]
[351103456,1738337454604,-500.0,0.00016849,2]
[351103457,1738337454613,-500.0,0.00016849,2]
[351103458,1738337454623,-705.74,0.00016849,2]
[351103459,1738337454632,-500.0,0.00016849,2]
[351103460,1738337454642,-667.2,0.00016849,2]
[351103461,1738337454651,-769.6,0.00016849,2]
[351103462,1738337454661,-526.43,0.00016849,2]
[351103463,1738337454671,-8380.77,0.00016849,2]
[351103464,1738337454680,-500.0,0.00016849,2]
[351103465,1738337454689,-537.89,0.00016849,2]
[351103466,1738337454699,-892.43,0.00016849,2]
[351103467,1738337454709,-1039.9,0.00016849,2]
[351103468,1738337454719,-845.25,0.00016849,2]
[351103469,1738337454728,-500.0,0.00016849,2]
[351103470,1738337454738,-657.15,0.00016849,2]
[351103471,1738337454748,-5003.51,0.00016849,2]
[351103472,1738337454758,-752.93,0.00016849,2]
[351103473,1738337454767,-500.0,0.00016849,2]
[351103474,1738337454777,-500.0,0.00016849,2]
[351103475,1738337454787,-889.66,0.00016849,2]
[351103476,1738337454796,-500.0,0.00016849,2]
[351103477,1738337454806,-420.40850234,0.00016849,2]
[351103478,1738337454815,-1655.9,0.00016849,2]
[351103479,1738337454825,-500.0,0.00016849,2]
[351103480,1738337454835,-500.0,0.00016849,2]
[351103481,1738337454844,-880.01,0.00016849,2]
[351103482,1738337454854,-2194.0,0.00016849,2]
[351103483,1738337454863,-1065.51,0.00016849,2]
[351103484,1738337454872,-500.0,0.00016849,2]
[351103485,1738337454882,-898.54,0.00016849,2]
[351103486,1738337454892,-500.0,0.00016849,2]
[351103487,1738337454902,-1486.33,0.00016849,2]
[351103488,1738337454911,-504.99,0.00016849,2]
[351103489,1738337454921,-1819.15,0.00016849,2]
[351103490,1738337454931,-500.0,0.00016849,2]
[351103491,1738337454941,-541.91,0.00016849,2]
[351103492,1738337454951,-404.69654038,0.00016849,2]
[351103493,1738337454962,-752.59,0.00016849,2]
[351103494,1738337454973,-500.0,0.00016849,2]
[351103495,1738337454982,-500.0,0.00016849,2]
[351103496,1738337454993,-571.42,0.00016849,2]
[351103497,1738337455003,-592.92,0.00016849,2]
[351103498,1738337455013,-1384.93,0.00016849,2]
[351103499,1738337455023,-1273.02,0.00016849,2]
[351103500,1738337455035,-1136.27,0.00016849,2]
[351103501,1738337455045,-596.46,0.00016849,2]
[351103502,1738337455056,-786.52,0.00016849,2]
[351103503,1738337455066,-3091.15,0.00016849,2]
[351103504,1738337455076,-962.97,0.00016849,2]
[351103505,1738337455086,-1170.72,0.00016849,2]
[351103506,1738337455095,-1591.77,0.00016849,2]
[351103507,1738337455105,-650.06,0.00016849,2]
[351103508,1738337455115,-2042.14,0.00016849,2]
[351103509,1738337455127,-2348.41,0.00016849,2]
[351103510,1738337455136,-562.34,0.00016849,2]
[351103511,1738337455147,-500.0,0.00016849,2]
[351103512,1738337455157,-500.0,0.00016849,2]
[351103513,1738337455167,-861.57,0.00016849,2]
[351103514,1738337455177,-500.0,0.00016849,2]
[351103515,1738337455187,-2815.31,0.00016849,2]
[351103516,1738337455197,-1470.62,0.00016849,2]
[351103517,1738337455207,-500.0,0.00016849,2]
[351103518,1738337455217,-500.0,0.00016849,2]
[351103519,1738337455228,-602.1,0.00016849,2]
[351103520,1738337455239,-1618.17,0.00016849,2]
[351103521,1738337455249,-1129.3,0.00016849,2]
[351103522,1738337455260,-807.04,0.00016849,2]
[351103523,1738337455269,-512.58,0.00016849,2]
[351103524,1738337455279,-1736.2,0.00016849,2]
[351103525,1738337455289,-500.0,0.00016849,2]
[351103526,1738337455300,-743.89,0.00016849,2]
[351103527,1738337455310,-500.0,0.00016849,2]
[351103528,1738337455319,-600.71,0.00016849,2]
[351103529,1738337455329,-500.0,0.00016849,2]
[351103530,1738337455339,-1139.59,0.00016849,2]
[351103531,1738337455356,-1335.88,0.00016849,2]
[351103532,1738337455366,-550.58,0.00016849,2]
[351103533,1738337455376,-500.0,0.00016849,2]
[351103534,1738337455386,-1619.6,0.00016849,2]
[351103535,1738337455396,-1127.7,0.00016849,2]
[351103536,1738337455405,-928.49,0.00016849,2]
[351103537,1738337455415,-500.0,0.00016849,2]
[351103538,1738337455425,-1587.1,0.00016849,2]
[351103539,1738337455435,-500.0,0.00016849,2]
[351103540,1738337455445,-500.0,0.00016849,2]
[351103541,1738337455455,-603.34,0.00016849,2]
[351103542,1738337455465,-516.36,0.00016849,2]
[351103543,1738337455475,-890.75,0.00016849,2]
[351103544,1738337455485,-500.0,0.00016849,2]
[351103545,1738337455495,-5474.09,0.00016849,2]
[351103546,1738337455505,-564.44,0.00016849,2]
[351103547,1738337455514,-1030.81,0.00016849,2]
[351103548,1738337455524,-500.0,0.00016849,2]
[351103549,1738337455534,-5474.07,0.00016849,2]
[351103550,1738337455543,-2076.08,0.00016849,2]
[351103551,1738337455562,-1295.61,0.00016849,2]
[351103552,1738337455573,-812.44,0.00016849,2]
[351103553,1738337455584,-500.0,0.00016849,2]
[351103554,1738337455594,-2105.35,0.00016849,2]
[351103555,1738337455604,-1423.19,0.00016849,2]
[351103556,1738337455614,-1138.15,0.00016849,2]
[351103557,1738337455625,-500.0,0.00016849,2]
[351103558,1738337455635,-2846.62,0.00016849,2]
[351103559,1738337455645,-793.62,0.00016849,2]
[351103560,1738337455656,-1504.26,0.00016849,2]
[351103561,1738337455666,-500.0,0.00016849,2]
[351103562,1738337455676,-500.0,0.00016849,2]
[351103563,1738337455686,-1268.09,0.00016849,2]
[351103564,1738337455696,-598.83,0.00016849,2]
[351103565,1738337455706,-1451.75,0.00016849,2]
[351103566,1738337455716,-2285.34,0.00016849,2]
[351103567,1738337455726,-2654.62,0.00016849,2]
[351103568,1738337455737,-500.0,0.00016849,2]
[351103569,1738337455746,-2414.42,0.00016849,2]
[351103570,1738337455757,-1454.44,0.00016849,2]
[351103571,1738337455766,-506.84,0.00016849,2]
[351103572,1738337455777,-1020.91,0.00016849,2]
[351103573,1738337455787,-3941.33,0.00016849,2]
[351103574,1738337455797,-500.0,0.00016849,2]
[351103575,1738337455810,-2268.71,0.00016849,2]
[351103576,1738337455820,-776.94,0.00016849,2]
[351103577,1738337455830,-3588.73,0.00016849,2]
[351103578,1738337455840,-941.97,0.00016849,2]
[351103579,1738337455851,-249.23741228,0.00016849,2]
[351103580,1738337455861,-1929.94,0.00016849,2]
[351103581,1738337455871,-3163.78,0.00016849,2]
[351103582,1738337455882,-973.15,0.00016849,2]
[351103583,1738337455893,-717.94,0.00016849,2]
[351103584,1738337455903,-4082.67,0.00016849,2]
[351103585,1738337455913,-7980.75,0.00016849,2]
[351103586,1738337455924,-873.69,0.00016849,2]
[351103587,1738337455934,-1717.79,0.00016849,2]
[351103588,1738337455945,-632.26,0.00016849,2]
[351103589,1738337455958,-500.0,0.00016849,2]
[351103590,1738337455968,-1575.16,0.00016849,2]
[351103591,1738337455979,-526.65,0.00016849,2]
[351103592,1738337455991,-1884.85,0.00016849,2]
[351103593,1738337456002,-1765.61,0.00016849,2]
[351103594,1738337456012,-1070.07,0.00016849,2]
[351103595,1738337456023,-1299.7,0.00016849,2]
[351103596,1738337456035,-3248.07,0.00016849,2]
[351103597,1738337456047,-870.57,0.00016849,2]
[351103598,1738337456058,-500.0,0.00016849,2]
[351103599,1738337456069,-770.3,0.00016849,2]
[351103600,1738337456079,-2101.8,0.00016849,2]
[351103601,1738337456090,-500.0,0.00016849,2]
[351103602,1738337456100,-3515.16,0.00016849,2]
[351103603,1738337456111,-1063.05,0.00016849,2]
[351103604,1738337456121,-3050.95,0.00016849,2]
[351103605,1738337456131,-534.24,0.00016849,2]
[351103606,1738337456141,-500.0,0.00016849,2]
[351103607,1738337456151,-500.0,0.00016849,2]
[351103608,1738337456161,-1232.13,0.00016849,2]
[351103609,1738337456172,-791.83,0.00016849,2]
[351103610,1738337456183,-2862.65,0.00016849,2]
[351103611,1738337456468,-1700.09,0.00016849,2]
[351103612,1738337456487,-4068.77,0.00016849,2]
[351103613,1738337456496,-1579.74,0.00016849,2]
[351103614,1738337456506,-1241.33,0.00016849,2]
[351103615,1738337456515,-638.85,0.00016849,2]
[351103616,1738337456524,-629.72,0.00016849,2]
[351103617,1738337456534,-500.0,0.00016849,2]
[351103618,1738337456543,-1016.29,0.00016849,2]
[351103619,1738337456554,-1248.22,0.00016849,2]
[351103620,1738337456563,-500.0,0.00016849,2]
[351103621,1738337456572,-248.81744724,0.00016849,2]
[351103622,1738337456582,-500.0,0.00016849,2]
[351103623,1738337456591,-500.0,0.00016849,2]
[351103624,1738337456601,-1647.94,0.00016849,2]
[351103625,1738337456610,-3049.39,0.00016849,2]
[351103626,1738337456619,-1373.52,0.00016849,2]
[351103627,1738337456629,-500.0,0.00016849,2]
[351103628,1738337456638,-271.18323406,0.00016849,2]
[351103629,1738337456647,-899.27,0.00016849,2]
[351103630,1738337456657,-500.0,0.00016849,2]
[351103631,1738337456666,-1751.72,0.00016849,2]
[351103632,1738337456675,-500.0,0.00016849,2]
[351103633,1738337456684,-2136.87,0.00016849,2]
[351103634,1738337456693,-1864.25,0.00016849,2]
[351103635,1738337456702,-517.07,0.00016849,2]
[351103636,1738337456711,-500.0,0.00016864,2]
[351103637,1738337456721,-3243.54588259,0.00016866,2]
[351103638,1738337456730,-74558.71445486,0.0001688,2]
[351103639,1738337456740,-209.0,0.0001688,2]
[351103640,1738337456749,-151.0,0.0001688,2]
[351103641,1738337456758,-151.0,0.0001688,2]
[351103642,1738337456768,-151.0,0.0001688,2]
[351103643,1738337456778,-151.0,0.00016886,2]
[351103644,1738337456787,-151.0,0.00016886,2]
[351103645,1738337456797,-151.0,0.00016886,2]
[351103646,1738337456809,-1114.100145,0.00016886,2]
[351103647,1738337456818,-151.0,0.00016886,2]
[351103648,1738337456827,-1114.100145,0.00016886,2]
[351103649,1738337456836,-151.0,0.00016886,2]
[351103650,1738337456846,-151.0,0.00016886,2]
[351103651,1738337456855,-151.0,0.00016886,2]
[351103652,1738337456865,-151.0,0.00016886,2]
[351103653,1738337456874,-151.0,0.00016886,2]
[351103654,1738337456884,-261.165799,0.00016886,2]
[351103655,1738337456893,-6323.906,0.00016886,2]
[351103656,1738337456903,-9413.1567,0.00016886,2]
[351103657,1738337456912,-9473.0282,0.00016886,2]
[351103658,1738337456922,-500.0,0.00016886,2]
[351103659,1738337456931,-1000.0,0.00016886,2]
[351103660,1738337456941,-500.0,0.000169,6]
[351103661,1738337456952,-5800.0,0.000169,2]
[351103662,1738337456964,-378.69729519,0.000169,2]
[351103663,1738337456974,-378.69729517,0.000169,2]
[351103664,1738337456983,-378.69729517,0.000169,2]
[351103665,1738337456994,-378.69729517,0.000169,2]
[351103666,1738337457004,-378.69729517,0.000169,2]
[351103667,1738337457012,-378.69729517,0.000169,2]
[351103668,1738337457022,-378.69729517,0.000169,2]
[351103669,1738337457032,-378.69729517,0.000169,2]
[351103670,1738337457042,-378.69729517,0.000169,2]
[351103671,1738337457052,-378.69729517,0.000169,2]
[351103672,1738337457062,-378.69729517,0.000169,2]
[351103673,1738337457071,-378.69729517,0.000169,2]
[351103674,1738337457080,-378.69729517,0.000169,2]
[351103675,1738337457090,-378.69729517,0.000169,2]
[351103676,1738337457100,-378.69729517,0.000169,2]
[351103677,1738337457109,-378.69729517,0.000169,2]
[351103678,1738337457119,-1000.0,0.000169,2]
[351103679,1738337457128,-378.69729517,0.000169,2]
[351103680,1738337457137,-378.69729517,0.000169,2]
[351103681,1738337457147,-378.69729517,0.000169,2]
[351103682,1738337457157,-378.69729517,0.000169,2]
[351103683,1738337457166,-500.0,0.00016915,2]
[351103684,1738337457175,-500.0,0.00016915,2]
[351103685,1738337457185,-500.0,0.00016915,2]
[351103686,1738337457195,-500.0,0.00016915,2]
[351103687,1738337457205,-500.0,0.00016915,2]
[351103688,1738337457215,-453.739,0.00016915,2]
[351103689,1738337457225,-1000.0,0.00016915,2]
[351103690,1738337457234,-1000.0,0.00016915,2]
[351103691,1738337457244,-1000.0,0.00016915,2]
[351103692,1738337457253,-1000.0,0.00016915,2]
[351103693,1738337457263,-1000.0,0.00016915,2]
[351103694,1738337457272,-1000.0,0.00016915,2]
[351103695,1738337457282,-423.893,0.00016915,2]
[351103696,1738337457291,-431.18147599,0.00016926,2]
[351103697,1738337457302,-372.51,0.00016952,2]
[351103698,1738337457311,-558.43,0.00016969,2]
[351103699,1738337457320,-1107.78,0.00016969,2]
[351103700,1738337457330,-1826.69,0.00016969,2]
[351103701,1738337457340,-1485.53,0.00016969,2]
[351103702,1738337457349,-1000.0,0.00016969,2]
[351103703,1738337457359,-1048.02,0.00016969,2]
[351103704,1738337457368,-547.22,0.00016969,2]
[351103705,1738337457377,-1403.56,0.00016969,2]
[351103706,1738337457387,-1717.39,0.00016969,2]
[351103707,1738337457398,-519.58845162,0.00016969,2]
[351103708,1738337457408,-500.0,0.00016973,2]
[351103709,1738337457418,-1000.0,0.00016985,2]
[351103710,1738337457429,-1000.0,0.00016985,2]
[351103711,1738337457438,-1000.0,0.00016985,2]
[351103712,1738337457448,-1000.0,0.00016985,2]
[351103713,1738337457458,-1000.0,0.00016985,2]
[351103714,1738337457468,-1000.0,0.00016985,2]
[351103715,1738337457477,-1000.0,0.00016985,2]
[351103716,1738337457487,-1000.0,0.00016985,2]
[351103717,1738337457497,-1000.0,0.00016985,2]
[351103718,1738337457506,-1017.90991595,0.00016985,2]
[351103719,1738337457516,-500.0,0.00016986,2]
[351103720,1738337457525,-500.0,0.00016986,2]
[351103721,1738337457534,-500.0,0.00016986,2]
[351103722,1738337457543,-500.0,0.00016986,2]
[351103723,1738337457554,-500.0,0.00016986,2]
[351103724,1738337457563,-500.0,0.00016986,2]
[351103725,1738337457573,-500.0,0.00016986,2]
[351103726,1738337457583,-500.0,0.00016986,2]
[351103727,1738337457593,-500.0,0.00016986,2]
[351103728,1738337457602,-543.11,0.00016986,2]
[351103729,1738337457611,-500.0,0.00016986,2]
[351103730,1738337457620,-500.0,0.00016986,2]
[351103731,1738337457629,-500.0,0.00016986,2]
[351103732,1738337457639,-500.0,0.00016986,2]
[351103733,1738337457648,-500.0,0.00016986,2]
[351103734,1738337457657,-500.0,0.00016986,2]
[351103735,1738337457667,-500.0,0.00016986,2]
[351103736,1738337457676,-500.0,0.00016986,2]
[351103737,1738337457686,-500.0,0.00016986,2]
[351103738,1738337457695,-500.0,0.00016986,2]
[351103739,1738337457704,-730.474873,0.00016986,2]
[351103740,1738337457713,-500.0,0.00016986,2]
[351103741,1738337457723,-500.0,0.00016986,2]
[351103742,1738337457732,-500.0,0.00016986,2]
[351103743,1738337457741,-500.0,0.00016986,2]
[351103744,1738337457751,-828.682327,0.00016986,2]
[351103745,1738337457760,-787.0,0.00016986,2]
[351103746,1738337457770,-500.0,0.00016986,2]
[351103747,1738337457780,-863.13,0.00016986,2]
[351103748,1738337457790,-500.0,0.00016986,2]
[351103749,1738337457799,-500.0,0.00016986,2]
[351103750,1738337457809,-757.27,0.00016986,2]
[351103751,1738337457819,-511.86,0.00016986,2]
[351103752,1738337457839,-732.53,0.00016986,2]
[351103753,1738337457861,-500.0,0.00016986,2]
[351103754,1738337457882,-500.0,0.00016986,2]
[351103755,1738337457903,-500.0,0.00016986,2]
[351103756,1738337457923,-500.0,0.00016986,2]
[351103757,1738337457944,-500.0,0.00016986,2]
[351103758,1738337457964,-784.14,0.00016986,2]
[351103759,1738337457985,-571.79,0.00016986,2]
[351103760,1738337458004,-500.0,0.00016986,2]
[351103761,1738337458025,-500.0,0.00016986,2]
[351103762,1738337458044,-500.0,0.00016986,2]
[351103763,1738337458074,-500.0,0.00016986,2]
[351103764,1738337458097,-755.44,0.00016986,2]
[351103765,1738337458110,-500.0,0.00016986,2]
[351103766,1738337458119,-500.0,0.00016986,2]
[351103767,1738337458128,-500.0,0.00016986,2]
[351103768,1738337458138,-500.0,0.00016986,2]
[351103769,1738337458147,-500.0,0.00016986,2]
[351103770,1738337458156,-830.49,0.00016986,2]
[351103771,1738337458166,-671.98,0.00016986,2]
[351103772,1738337458175,-531.75,0.00016986,2]
[351103773,1738337458185,-512.96455064,0.00016986,2]
[351103774,1738337458194,-940.54,0.00016986,2]
[351103775,1738337458203,-530.09113775,0.00016986,2]
[351103776,1738337458212,-1039.0,0.00016986,2]
[351103777,1738337458222,-500.0,0.00016986,2]
[351103778,1738337458232,-576.65249606,0.00016986,2]
[351103779,1738337458241,-735.14,0.00016986,2]
[351103780,1738337458251,-500.0,0.00016986,2]
[351103781,1738337458261,-1680.84,0.00016986,2]
[351103782,1738337458271,-808.19,0.00016986,2]
[351103783,1738337458281,-525.64,0.00016986,2]
[351103784,1738337458291,-500.0,0.00016986,2]
[351103785,1738337458300,-500.0,0.00016986,2]
[351103786,1738337458310,-724.25,0.00016986,2]
[351103787,1738337458320,-1269.36,0.00016986,2]
[351103788,1738337458330,-500.0,0.00016986,2]
[351103789,1738337458339,-517.66,0.00016986,2]
[351103790,1738337458348,-500.0,0.00016986,2]
[351103791,1738337458358,-1040.31,0.00016986,2]
[351103792,1738337458368,-500.0,0.00016986,2]
[351103793,1738337458377,-573.1,0.00016986,2]
[351103794,1738337458387,-1175.11,0.00016986,2]
[351103795,1738337458397,-500.0,0.00016986,2]
[351103796,1738337458407,-500.0,0.00016986,2]
[351103797,1738337458416,-892.86,0.00016986,2]
[351103798,1738337458425,-831.38,0.00016986,2]
[351103799,1738337458434,-500.0,0.00016986,2]
[351103800,1738337458444,-597.54,0.00016986,2]
[351103801,1738337458454,-744.02,0.00016986,2]
[351103802,1738337458464,-500.0,0.00016986,2]
[351103803,1738337458478,-500.0,0.00016986,2]
[351103804,1738337458489,-677.33,0.00016986,2]
[351103805,1738337458499,-500.0,0.00016986,2]
[351103806,1738337458508,-500.0,0.00016986,2]
[351103807,1738337458518,-577.7,0.00016986,2]
[351103808,1738337458528,-552.25,0.00016986,2]
[351103809,1738337458538,-1171.17,0.00016986,2]
[351103810,1738337458547,-500.0,0.00016986,2]
[351103811,1738337458559,-1201.98,0.00016986,2]
[351103812,1738337458569,-500.0,0.00016986,2]
[351103813,1738337458579,-962.2,0.00016986,2]
[351103814,1738337458589,-521.96,0.00016986,2]
[351103815,1738337458598,-500.0,0.00016986,2]
[351103816,1738337458608,-547.88,0.00016986,2]
[351103817,1738337458617,-500.0,0.00016986,2]
[351103818,1738337458627,-624.35,0.00016986,2]
[351103819,1738337458637,-500.0,0.00016986,2]
[351103820,1738337458646,-661.37,0.00016986,2]
[351103821,1738337458656,-527.05,0.00016986,2]
[351103822,1738337458666,-896.13,0.00016986,2]
[351103823,1738337458676,-500.0,0.00016986,2]
[351103824,1738337458685,-500.0,0.00016986,2]
[351103825,1738337458694,-627.37,0.00016986,2]
[351103826,1738337458704,-548.91,0.00016986,2]
[351103827,1738337458713,-500.0,0.00016986,2]
[351103828,1738337458722,-500.0,0.00016986,2]
[351103829,1738337458732,-500.0,0.00016986,2]
[351103830,1738337458742,-523.11,0.00016986,2]
[351103831,1738337458751,-525.44,0.00016986,2]
[351103832,1738337458761,-1191.37,0.00016986,2]
[351103833,1738337458770,-515.3,0.00016986,2]
[351103834,1738337458780,-500.0,0.00016986,2]
[351103835,1738337458789,-508.89,0.00016986,2]
[351103836,1738337458799,-834.86,0.00016986,2]
[351103837,1738337458809,-710.41,0.00016986,2]
[351103838,1738337458819,-500.0,0.00016986,2]
[351103839,1738337458828,-500.0,0.00016986,2]
[351103840,1738337458837,-500.0,0.00016986,2]
[351103841,1738337458847,-987.06,0.00016986,2]
[351103842,1738337458856,-500.0,0.00016986,2]
[351103843,1738337458866,-507.9,0.00016986,2]
[351103844,1738337458875,-583.45,0.00016986,2]
[351103845,1738337458885,-500.0,0.00016986,2]
[351103846,1738337458894,-575.66,0.00016986,2]
[351103847,1738337458904,-500.0,0.00016986,2]
[351103848,1738337458918,-511.84,0.00016986,2]
[351103849,1738337458927,-747.35,0.00016986,2]
[351103850,1738337458937,-500.0,0.00016986,2]
[351103851,1738337458951,-500.0,0.00016986,2]
[351103852,1738337458960,-599.23,0.00016986,2]
[351103853,1738337458969,-500.0,0.00016986,2]
[351103854,1738337458978,-500.0,0.00016986,2]
[351103855,1738337458989,-500.0,0.00016986,2]
[351103856,1738337458998,-500.0,0.00016986,2]
[351103857,1738337459007,-500.0,0.00016986,2]
[351103858,1738337459017,-500.0,0.00016986,2]
[351103859,1738337459026,-1018.64,0.00016986,2]
[351103860,1738337459036,-879.7,0.00016986,2]
[351103861,1738337459046,-584.66,0.00016986,2]
[351103862,1738337459056,-205.49756415,0.00016986,2]
[351103863,1738337459066,-1075.66,0.00016986,2]
[351103864,1738337459075,-500.0,0.00016986,2]
[351103865,1738337459084,-500.0,0.00016986,2]
[351103866,1738337459094,-500.0,0.00016986,2]
[351103867,1738337459103,-500.0,0.00016986,2]
[351103868,1738337459112,-500.0,0.00016986,2]
[351103869,1738337459121,-1110.29,0.00016986,2]
[351103870,1738337459131,-500.0,0.00016986,2]
[351103871,1738337459140,-786.96,0.00016986,2]
[351103872,1738337459149,-525.19,0.00016986,2]
[351103873,1738337459159,-500.0,0.00016986,2]
[351103874,1738337459168,-500.0,0.00016986,2]
[351103875,1738337459177,-849.92,0.00016986,2]
[351103876,1738337459186,-1206.52,0.00016986,2]
[351103877,1738337459196,-657.29,0.00016986,2]
[351103878,1738337459205,-500.0,0.00016986,2]
[351103879,1738337459215,-835.77,0.00016986,2]
[351103880,1738337459225,-622.41,0.00016986,2]
[351103881,1738337459234,-617.02,0.00016986,2]
[351103882,1738337459244,-500.0,0.00016986,2]
[351103883,1738337459254,-500.0,0.00016986,2]
[351103884,1738337459266,-500.0,0.00016986,2]
[351103885,1738337459275,-705.74,0.00016986,2]
[351103886,1738337459285,-500.0,0.00016986,2]
[351103887,1738337459294,-667.2,0.00016986,2]
[351103888,1738337459306,-769.6,0.00016986,2]
[351103889,1738337459315,-526.43,0.00016986,2]
[351103890,1738337459325,-8380.77,0.00016986,2]
[351103891,1738337459334,-500.0,0.00016986,2]
[351103892,1738337459343,-537.89,0.00016986,2]
[351103893,1738337459353,-892.43,0.00016986,2]
[351103894,1738337459362,-1039.9,0.00016986,2]
[351103895,1738337459371,-845.25,0.00016986,2]
[351103896,1738337459380,-500.0,0.00016986,2]
[351103897,1738337459389,-657.15,0.00016986,2]
[351103898,1738337459399,-5003.51,0.00016986,2]
[351103899,1738337459408,-752.93,0.00016986,2]
[351103900,1738337459418,-500.0,0.00016986,2]
[351103901,1738337459428,-889.66,0.00016986,2]
[351103902,1738337459442,-500.0,0.00016986,2]
[351103903,1738337459453,-500.0,0.00016986,2]
[351103904,1738337459466,-1655.9,0.00016986,2]
[351103905,1738337459476,-500.0,0.00016986,2]
[351103906,1738337459487,-500.0,0.00016986,2]
[351103907,1738337459497,-880.01,0.00016986,2]
[351103908,1738337459508,-2194.0,0.00016986,2]
[351103909,1738337459520,-1065.51,0.00016986,2]
[351103910,1738337459533,-500.0,0.00016986,2]
[351103911,1738337459544,-898.54,0.00016986,2]